Workbook

Sheet MSU
B1: Paavo Kaasila | E1: 4.1.1998 Muhos
B2: SUPERPESIS | E2: Runkosarja | I2: Kärkilyönnit (KL), pesänvälit | P2: Runkosarja TOP-30 | U2: Alempi loppusarja | AB2: Ylempi loppusarja TOP-10 | AG2: Play off, voitot, voittoprosentti | AL2: Arvo-ottelut | AO2: Mitalit
B3: Vuosi | C3: Sija | D3: Seura | E3: OTT | F3: KUN | G3: LÖI | H3: TOI | I3: KL | J3: 0 > 1 | K3: 1 > 2 | L3: 2 > 3 | M3: 3 > k | N3: KL-% | P3: LÖI | Q3: TOI | R3: L+T | S3: KL | U3: OTT | V3: KUN | W3: LÖI | X3: TOI | Y3: KL | Z3: KL-% | AB3: LÖI | AC3: TOI | AD3: L+T | AE3: KL | AG3: Puolivälierät | AH3: Välierät | AI3: Pronssi | AJ3: Finaalit | AL3: IL | AM3: LL | AN3: hSM | AO3: K | AP3: H | AQ3: P
B4: 2014 | C4: 7. | D4: Lippo Pesis 2 | F4: suomensarja
B5: 2015 | C5: 8. | D5: Lippo Pesis 2 | F5: suomensarja | T5: 0
B6: 2016 | C6: 2. | D6: KeKi 2 | F6: suomensarja
B7: 2017 | C7: 4. | D7: Lippo Pesis 2 | F7: suomensarja
B8: 2017 | C8: 7. | D8: MuPS | F8: ykköspesis | T8: 0
B9: 2018 | C9: 3. | D9: Lippo Pesis 2 | F9: suomensarja
B10: 2018 | C10: 14. | D10: Lippo Pesis | E10: 2 | F10: 0 | G10: 0 | H10: 2 | I10: 3 | J10: 3 | K10: 0 | L10: 0 | M10: 0 | N10: 37.5 % | O10: 8
B11: 2019 | C11: 6. | D11: Lippo Jun | F11: suomensarja
B12: 2019 | C12: 2. | D12: Lippo Jun | F12: ykköspesis | T12: 0 | U12: 3 | V12: 0 | W12: 1 | X12: 3 | Y12: 7 | Z12: 46.7 % | AA12: 15
B13: 2020 | C13: 3. | D13: MuPS | F13: suomensarja
B14: 2021 | C14: 2. | D14: MuPS | F14: suomensarja
B15: 2022 | C15: 8. | D15: SiKi 2 | F15: suomensarja
B16: 2023 | C16: 4. | D16: Lippo Jun | F16: ykköspesis | T16: 0 | U16: 3 | V16: 0 | W16: 1 | X16: 3 | Y16: 7 | Z16: 46.7 % | AA16: 15
B17: Yhteensä | E17: =SUM(E4:E16) -> 2 | F17: 0 | G17: 0 | H17: 2 | I17: 3 | J17: 3 | K17: 0 | L17: 0 | M17: 0 | N17: =PRODUCT(I17/O17) -> 37.5 % | O17: =SUM(O3:O16) -> 8 | P17: 0-0-0 | Q17: 0-0-0 | R17: 0-0-0 | S17: 0-0-0 | U17: 3 | V17: 0 | W17: 1 | X17: 3 | Y17: 7 | Z17: 46.7 % | AB17: 0-0-0 | AC17: 0-0-0 | AD17: 0-0-0 | AE17: 0-0-0 | AG17: 0/1 | AH17: 0/0 | AI17: 0/0 | AJ17: 0/0 | AL17: =SUM(AL4:AL16) -> 0 | AM17: 0 | AN17: 0 | AO17: 0 | AP17: 0 | AQ17: 0
AG18: 0.0 % | AH18: 0.0 % | AI18: 0.0 % | AJ18: 0.0 %
B19: Pesispörssi | D19: =SUM(F17:H17)+((I17-F17-G17)/3)+(E17/3)+(AL17*25)+(AM17*25)+(AN17*10)+(AO17*25)+(AP17*20)+(AQ17*15) -> 3.7
B21: URA SUPERISSA | E21: OTT | F21: KUN | G21: LÖI | H21: TOI | I21: KL | K21: ka/L | L21: ka/T | M21: ka/KL | N21: KL-% | P21: ENSIMMÄISET RUNKOSARJASSA
B22: Runkosarja | E22: =PRODUCT(E17) -> 2 | F22: =PRODUCT(F17) -> 0 | G22: =PRODUCT(G17) -> 0 | H22: =PRODUCT(H17) -> 2 | I22: =PRODUCT(I17) -> 3 | K22: =PRODUCT((F22+G22)/E22) -> 0.00 | L22: =PRODUCT(H22/E22) -> 1.00 | M22: =PRODUCT(I22/E22) -> 1.50 | N22: =PRODUCT(N17) -> 37.5 % | O22: =PRODUCT(O17) -> 8 | P22: Ottelu | R22: 09.08. 2018 Lippo Pesis - KaMa 0-1 (4-4, 0-3) | AA22: 1. ottelu | AE22: 20 v 7 kk 5 pv
B23: Ylempi loppusarja | P23: Lyöty
B24: Alempi loppusarja | E24: 3 | F24: 0 | G24: 1 | H24: 3 | I24: 7 | K24: =PRODUCT((F24+G24)/E24) -> 0.33 | L24: =PRODUCT(H24/E24) -> 1.00 | M24: =PRODUCT(I24/E24) -> 2.33 | N24: 46.7 % | O24: 15 | P24: Tuotu | R24: 14.08. 2018 Lippo Pesis - HP 2-1 (5-7, 8-2, 4-0)) | AA24: 2. ottelu | AE24: 20 v 7 kk 10 pv
B25: KAIKKI | E25: =SUM(E22:E24) -> 5 | F25: =SUM(F22:F24) -> 0 | G25: =SUM(G22:G24) -> 1 | H25: =SUM(H22:H24) -> 5 | I25: =SUM(I22:I24) -> 10 | K25: =PRODUCT((F25+G25)/E25) -> 0.20 | L25: =PRODUCT(H25/E25) -> 1.00 | M25: =PRODUCT(I25/E25) -> 2.00 | N25: =PRODUCT(I25/O25) -> 43.5 % | O25: =SUM(O22:O24) -> 23 | P25: Kunnari
O26: =SUM(O23:O25) -> 38
B27: Seurat | D27: Lippo Jun = Oulun Lippo Juniorit (2003), kasvattajaseura
D28: Lippo Pesis = Oulun Lippo Pesis (2010)
D29: KeKi = Kempeleen Kiri (1915)
D30: MuPS = Muhoksen Pallo-Salamat (1969)

Sheet MYP, MSS
B1: Paavo Kaasila | E1: 4.1.1998 Muhos
B2: YKKÖSPESIS | E2: Runkosarja | L2: Runkosarja TOP-10 | Q2: Jatkosarjat | X2: SUOMENSARJA | AA2: Runkosarja | AH2: Runkosarja TOP-10 | AM2: Jatkosarjat
B3: Vuosi | C3: Sija | D3: Seura | E3: OTT | F3: KUN | G3: LÖI | H3: TOI | I3: KL | J3: KL-% | L3: LÖI | M3: TOI | N3: L+T | O3: KL | Q3: OTT | R3: KUN | S3: LÖI | T3: TOI | U3: KL | V3: KL-% | X3: Vuosi | Y3: Sija | Z3: Seura | AA3: OTT | AB3: KUN | AC3: LÖI | AD3: TOI | AE3: KL | AF3: KL-% | AH3: LÖI | AI3: TOI | AJ3: L+T | AK3: KL | AM3: OTT | AN3: KUN | AO3: LÖI | AP3: TOI | AQ3: KL | AR3: KL-%
X4: 2014 | Y4: 7. | Z4: Lippo Pesis 2 | AA4: 14 | AB4: 0 | AC4: 15 | AD4: 8 | AE4: 60 | AF4: 61.9 % | AG4: 97
X5: 2015 | Y5: 8. | Z5: Lippo Pesis 2 | AA5: 18 | AB5: 0 | AC5: 3 | AD5: 23 | AE5: 68 | AF5: 61.3 % | AG5: 111
X6: 2016 | Y6: 2. | Z6: KeKi 2 | AA6: 17 | AB6: 2 | AC6: 17 | AD6: 23 | AE6: 79 | AF6: 63.7 % | AG6: 124 | AM6: 5 | AN6: 1 | AO6: 1 | AP6: 9 | AQ6: 22 | AR6: 55.0 % | AS6: 40
B7: 2017 | C7: 9. | D7: MuPS | E7: 15 | F7: 2 | G7: 0 | H7: 10 | I7: 36 | J7: 44.4 % | K7: 81 | X7: 2017 | Y7: 4. | Z7: Lippo Pesis 2 | AA7: 10 | AB7: 0 | AC7: 11 | AD7: 17 | AE7: 46 | AF7: 73.0 % | AG7: 63
X8: 2018 | Y8: 3. | Z8: Lippo Pesis 2 | AA8: 13 | AB8: 1 | AC8: 9 | AD8: 22 | AE8: 70 | AF8: 72.2 % | AG8: 97 | AM8: 3 | AN8: 0 | AO8: 2 | AP8: 5 | AQ8: 19 | AR8: 70.4 % | AS8: 27
B9: 2019 | C9: 2. | D9: Lippo Jun | E9: 15 | F9: 1 | G9: 2 | H9: 3 | I9: 21 | J9: 30.0 % | K9: 70 | X9: 2019 | Y9: 6. | Z9: Lippo Jun 2 | AA9: 9 | AB9: 1 | AC9: 3 | AD9: 21 | AE9: 46 | AF9: 76.7 % | AG9: 60
X10: 2020 | Y10: 3. | Z10: MuPS | AA10: 8 | AB10: 0 | AC10: 0 | AD10: 12 | AE10: 33 | AF10: 54.1 % | AG10: 61 | AI10: 8.
X11: 2021 | Y11: 2. | Z11: MuPS | AA11: 18 | AB11: 1 | AC11: 1 | AD11: 39 | AE11: 105 | AF11: 71.0 % | AG11: 148 | AI11: 3. | AK11: 5. | AM11: 3 | AN11: 0 | AO11: 0 | AP11: 3 | AQ11: 9 | AR11: 45.0 % | AS11: 20
X12: 2022 | Y12: 8. | Z12: SiKi 2 | AA12: 1 | AB12: 0 | AC12: 0 | AD12: 1 | AE12: 3 | AF12: 42.9 % | AG12: 7
B13: 2023 | C13: 4. | D13: Lippo Jun | E13: 18 | F13: 0 | G13: 1 | H13: 10 | I13: 36 | J13: 44.4 % | K13: 81 | Q13: 2 | R13: 0 | S13: 1 | T13: 0 | U13: 5 | V13: 50.0 % | W13: 10
B14: YHTEENSÄ | E14: =SUM(E4:E13) -> 48 | F14: =SUM(F4:F13) -> 3 | G14: =SUM(G4:G13) -> 3 | H14: =SUM(H4:H13) -> 23 | I14: =SUM(I4:I13) -> 93 | J14: =PRODUCT(I14/K14) -> 40.1 % | K14: =SUM(K4:K13) -> 232 | Q14: =SUM(Q4:Q13) -> 2 | R14: =SUM(R4:R13) -> 0 | S14: =SUM(S4:S13) -> 1 | T14: =SUM(T4:T13) -> 0 | U14: =SUM(U4:U13) -> 5 | V14: =PRODUCT(U14/W14) -> 50.0 % | W14: =SUM(W4:W13) -> 10 | X14: YHTEENSÄ | AA14: =SUM(AA4:AA13) -> 108 | AB14: =SUM(AB4:AB13) -> 5 | AC14: =SUM(AC4:AC13) -> 59 | AD14: =SUM(AD4:AD13) -> 166 | AE14: =SUM(AE4:AE13) -> 510 | AF14: =PRODUCT(AE14/AG14) -> 66.4 % | AG14: =SUM(AG4:AG13) -> 768 | AM14: =SUM(AM4:AM13) -> 11 | AN14: =SUM(AN4:AN13) -> 1 | AO14: =SUM(AO4:AO13) -> 3 | AP14: =SUM(AP4:AP13) -> 17 | AQ14: =SUM(AQ4:AQ13) -> 50 | AR14: =PRODUCT(AQ14/AS14) -> 57.5 % | AS14: =SUM(AS4:AS13) -> 87
B16: KAIKKI OTTELUT | E16: OTT | F16: KUN | G16: LÖI | H16: TOI | I16: KL | J16: KL-% | L16: ka/L | M16: ka/T | N16: ka/l+t | O16: ka/kl | R16: Seurat | T16: Lippo Jun = Oulun Lippo Juniorit (2003), kasvattajaseura
B17: SUPERPESIS | E17: 5 | F17: 0 | G17: 1 | H17: 5 | I17: 10 | J17: 43.5 % | K17: =PRODUCT(I17/J17) -> 22.98850575 | L17: =PRODUCT((F17+G17)/E17) -> 0.20 | M17: =PRODUCT(H17/E17) -> 1.00 | N17: =PRODUCT((F17+G17+H17)/E17) -> 1.20 | O17: =PRODUCT(I17/E17) -> 2.00 | T17: Lippo Pesis = Oulun Lippo Pesis (2010)
B18: YKKÖSPESIS | E18: =PRODUCT(E14+Q14) -> 50 | F18: =PRODUCT(F14+R14) -> 3 | G18: =PRODUCT(G14+S14) -> 4 | H18: =PRODUCT(H14+T14) -> 23 | I18: =PRODUCT(I14+U14) -> 98 | J18: =PRODUCT(I18/K18) -> 40.5 % | K18: =PRODUCT(K14+W14) -> 242 | L18: =PRODUCT((F18+G18)/E18) -> 0.14 | M18: =PRODUCT(H18/E18) -> 0.46 | N18: =PRODUCT((F18+G18+H18)/E18) -> 0.60 | O18: =PRODUCT(I18/E18) -> 1.96 | T18: KeKi = Kempeleen Kiri (1915)
B19: SUOMENSARJA | E19: =PRODUCT(AA14+AM14) -> 119 | F19: =PRODUCT(AB14+AN14) -> 6 | G19: =PRODUCT(AC14+AO14) -> 62 | H19: =PRODUCT(AD14+AP14) -> 183 | I19: =PRODUCT(AE14+AQ14) -> 560 | J19: =PRODUCT(I19/K19) -> 65.5 % | K19: =PRODUCT(AG14+AS14) -> 855 | L19: =PRODUCT((F19+G19)/E19) -> 0.57 | M19: =PRODUCT(H19/E19) -> 1.54 | N19: =PRODUCT((F19+G19+H19)/E19) -> 2.11 | O19: =PRODUCT(I19/E19) -> 4.71 | T19: MuPS = Muhoksen Pallo-Salamat (1969)
B20: YHTEENSÄ | E20: =SUM(E17:E19) -> 174 | F20: =SUM(F17:F19) -> 9 | G20: 67 | H20: 211 | I20: 668 | J20: =PRODUCT(I20/K20) -> 59.6 % | K20: =SUM(K17:K19) -> 1119.988506 | L20: =PRODUCT((F20+G20)/E20) -> 0.44 | M20: =PRODUCT(H20/E20) -> 1.21 | N20: =PRODUCT((F20+G20+H20)/E20) -> 1.65 | O20: =PRODUCT(I20/E20) -> 3.84 | T20: SiKi = Simon Kiri (1926)
